[Event "GrandPrix_29.05"]
[Site "Chess.com"]
[Date "2020.05.29"]
[Round "2"]
[White "Promacherr"]
[Black "Tokarev_Sergey"]
[Result "1-0"]
[WhiteElo "2204"]
[BlackElo "2016"]
[TimeControl "600+2"]
[EndTime "9:52:33 PDT"]
[Termination "Promacherr won by resignation"]

1. d4 {[%clk 0:10:01.9]} 1... e6 {[%clk 0:09:59.4]} 2. e4 {[%clk 0:10:01.9]}
2... d5 {[%clk 0:09:59.5]} 3. Nd2 {[%clk 0:10:02.8]} 3... c5 {[%clk 0:09:59.1]}
4. exd5 {[%clk 0:10:04]} 4... exd5 {[%clk 0:10:00.2]} 5. Ngf3 {[%clk 0:10:05]}
5... Nf6 {[%clk 0:10:00.6]} 6. Be2 {[%clk 0:09:57.1]} 6... Be7 {[%clk
0:09:58.9]} 7. O-O {[%clk 0:09:57.6]} 7... O-O {[%clk 0:09:58.4]} 8. dxc5 {[%clk
0:09:58.6]} 8... Bxc5 {[%clk 0:09:58.2]} 9. Nb3 {[%clk 0:09:59.7]} 9... Bb6
{[%clk 0:09:58.4]} 10. Nfd4 {[%clk 0:10:00.6]} 10... Nc6 {[%clk 0:09:53.7]} 11.
Bf3 {[%clk 0:10:00.7]} 11... a5 {[%clk 0:09:41.8]} 12. a4 {[%clk 0:10:01.1]}
12... Ne4 {[%clk 0:09:17.4]} 13. Be3 {[%clk 0:10:00.7]} 13... Ne5 {[%clk
0:09:06.2]} 14. Be2 {[%clk 0:09:58.1]} 14... Nd6 {[%clk 0:08:36.6]} 15. Nd2
{[%clk 0:09:40.2]} 15... Qf6 {[%clk 0:08:13.3]} 16. b3 {[%clk 0:09:16.9]} 16...
Bd7 {[%clk 0:07:44.7]} 17. c3 {[%clk 0:09:03.4]} 17... Rac8 {[%clk 0:07:40.7]}
18. Rc1 {[%clk 0:09:03.9]} 18... Nf5 {[%clk 0:07:22.6]} 19. Nxf5 {[%clk
0:08:50]} 19... Bxf5 {[%clk 0:07:24.5]} 20. Bxb6 {[%clk 0:08:46.6]} 20... Qxb6
{[%clk 0:07:26.4]} 21. Nf3 {[%clk 0:08:47.5]} 21... Nxf3+ {[%clk 0:07:02.8]} 22.
Bxf3 {[%clk 0:08:49.4]} 22... Rfd8 {[%clk 0:06:48.7]} 23. Bxd5 {[%clk
0:08:18.9]} 23... Be6 {[%clk 0:06:46.3]} 24. c4 {[%clk 0:08:05.4]} 24... Bxd5
{[%clk 0:06:46.6]} 25. cxd5 {[%clk 0:08:06.5]} 25... Rxc1 {[%clk 0:06:45.2]} 26.
Qxc1 {[%clk 0:08:08.4]} 26... Qxb3 {[%clk 0:06:42.4]} 27. d6 {[%clk 0:08:07.4]}
27... Qxa4 {[%clk 0:06:31.9]} 28. Qc7 {[%clk 0:08:01]} 28... Qd7 {[%clk
0:06:25.6]} 29. Rc1 {[%clk 0:07:55]} 29... g6 {[%clk 0:05:40]} 30. Qxa5 {[%clk
0:07:42.1]} 30... Qxd6 {[%clk 0:05:33.1]} 31. h3 {[%clk 0:07:43.2]} 31... b6
{[%clk 0:05:27]} 32. Qb5 {[%clk 0:07:43.1]} 32... Qf4 {[%clk 0:05:16.1]} 33. Rb1
{[%clk 0:07:36.9]} 33... Rd6 {[%clk 0:04:42.2]} 34. g3 {[%clk 0:07:32.9]} 34...
Qf3 {[%clk 0:03:53]} 35. Re1 {[%clk 0:07:14.2]} 35... Rd1 {[%clk 0:03:10]} 36.
Qe8+ {[%clk 0:07:09.6]} 36... Kg7 {[%clk 0:03:09.9]} 37. Qe5+ {[%clk 0:07:11.5]}
37... Kh6 {[%clk 0:03:07.1]} 38. Rxd1 {[%clk 0:07:02.3]} 38... Qxd1+ {[%clk
0:03:09]} 39. Kg2 {[%clk 0:06:58.1]} 39... Qd2 {[%clk 0:02:51]} 40. h4 {[%clk
0:06:50.5]} 40... Qc1 {[%clk 0:02:33]} 41. g4 {[%clk 0:06:34.1]} 41... Qc6+
{[%clk 0:02:31.3]} 42. Kg3 {[%clk 0:06:26.9]} 42... Qe6 {[%clk 0:01:25.4]} 43.
g5+ {[%clk 0:05:57.2]} 43... Kh5 {[%clk 0:01:25.7]} 44. Qf4 {[%clk 0:04:50.5]}
44... Qf5 {[%clk 0:01:23.8]} 45. Qd4 {[%clk 0:04:45.4]} 1-0

[Event "GrandPrix_29.05"]
[Site "Chess.com"]
[Date "2020.05.29"]
[Round "2"]
[White "AvitalBor"]
[Black "JonahWillow"]
[Result "1-0"]
[WhiteElo "2640"]
[BlackElo "2258"]
[TimeControl "600+2"]
[EndTime "9:52:35 PDT"]
[Termination "AvitalBor won by resignation"]

1. e4 {[%clk 0:10:01.9]} 1... c5 {[%clk 0:09:59.4]} 2. c3 {[%clk 0:10:01.6]}
2... Nf6 {[%clk 0:09:56.8]} 3. e5 {[%clk 0:10:02.9]} 3... Nd5 {[%clk 0:09:57.8]}
4. d4 {[%clk 0:10:04.8]} 4... cxd4 {[%clk 0:09:59.7]} 5. cxd4 {[%clk 0:10:06.7]}
5... g6 {[%clk 0:10:00.8]} 6. Nf3 {[%clk 0:10:06.5]} 6... Bg7 {[%clk 0:10:00.2]}
7. h4 {[%clk 0:10:06.1]} 7... h6 {[%clk 0:09:32.6]} 8. h5 {[%clk 0:10:03.1]}
8... g5 {[%clk 0:09:32.8]} 9. Bc4 {[%clk 0:09:46]} 9... Nb6 {[%clk 0:09:31.9]}
10. Bb3 {[%clk 0:09:47.1]} 10... d6 {[%clk 0:09:22.8]} 11. exd6 {[%clk
0:09:05.9]} 11... Qxd6 {[%clk 0:09:19.1]} 12. Nc3 {[%clk 0:09:06.6]} 12... O-O
{[%clk 0:09:01.5]} 13. Qd3 {[%clk 0:08:55.3]} 13... Nc6 {[%clk 0:08:27.9]} 14.
Nb5 {[%clk 0:08:55.9]} 14... Qd8 {[%clk 0:06:46.4]} 15. Bxg5 {[%clk 0:07:10.2]}
15... Bg4 {[%clk 0:04:46.2]} 16. Bxh6 {[%clk 0:06:44.5]} 16... e6 {[%clk
0:03:42.5]} 17. Bxg7 {[%clk 0:06:39.2]} 17... Kxg7 {[%clk 0:03:43.4]} 18. h6+
{[%clk 0:06:07.6]} 18... Kh8 {[%clk 0:03:43.9]} 19. Qe4 {[%clk 0:03:18.2]} 19...
Bf5 {[%clk 0:03:15]} 20. Qf4 {[%clk 0:03:04.4]} 20... Nb4 {[%clk 0:03:08.7]} 21.
O-O {[%clk 0:03:03]} 21... Bd3 {[%clk 0:02:53.2]} 22. Nd6 {[%clk 0:02:47]} 22...
Qe7 {[%clk 0:02:29.5]} 23. Ng5 {[%clk 0:02:03.6]} 23... Bg6 {[%clk 0:02:20.5]}
24. Qe5+ {[%clk 0:01:54.2]} 24... f6 {[%clk 0:02:21]} 25. Qxe6 {[%clk
0:01:55.5]} 25... Qxe6 {[%clk 0:01:41]} 26. Nxe6 {[%clk 0:01:57.4]} 26... Rg8
{[%clk 0:01:38.8]} 27. Nf4 {[%clk 0:01:57.3]} 1-0

[Event "GrandPrix_29.05"]
[Site "Chess.com"]
[Date "2020.05.29"]
[Round "2"]
[White "Micki-taryan"]
[Black "ly4o"]
[Result "1-0"]
[WhiteElo "2512"]
[BlackElo "2032"]
[TimeControl "600+2"]
[EndTime "9:52:41 PDT"]
[Termination "Micki-taryan won by resignation"]

1. d4 {[%clk 0:10:01.6]} 1... Nf6 {[%clk 0:10:00.8]} 2. Nf3 {[%clk 0:09:58.1]}
2... e6 {[%clk 0:10:02]} 3. c4 {[%clk 0:09:57.7]} 3... Bb4+ {[%clk 0:10:02.2]}
4. Bd2 {[%clk 0:09:58.2]} 4... Qe7 {[%clk 0:10:02.5]} 5. Nc3 {[%clk 0:09:58.9]}
5... b6 {[%clk 0:09:47.8]} 6. g3 {[%clk 0:09:56.9]} 6... Bb7 {[%clk 0:09:49]} 7.
Bg2 {[%clk 0:09:57.9]} 7... O-O {[%clk 0:09:50]} 8. O-O {[%clk 0:09:58.5]} 8...
d5 {[%clk 0:09:51.1]} 9. cxd5 {[%clk 0:09:44]} 9... exd5 {[%clk 0:09:48.2]} 10.
a3 {[%clk 0:09:41.8]} 10... Bxc3 {[%clk 0:09:38.7]} 11. Bxc3 {[%clk 0:09:43.7]}
11... Re8 {[%clk 0:09:39.7]} 12. e3 {[%clk 0:09:40.7]} 12... Nbd7 {[%clk
0:09:39.3]} 13. b4 {[%clk 0:09:32.9]} 13... Ne4 {[%clk 0:09:39.7]} 14. Bb2
{[%clk 0:09:31.6]} 14... c6 {[%clk 0:09:08.7]} 15. Ne1 {[%clk 0:08:04.2]} 15...
a5 {[%clk 0:09:07.3]} 16. Nd3 {[%clk 0:08:05.3]} 16... axb4 {[%clk 0:08:40.1]}
17. Nxb4 {[%clk 0:08:03.8]} 17... Nd6 {[%clk 0:08:34.3]} 18. a4 {[%clk
0:07:27.8]} 18... Nc4 {[%clk 0:08:34.2]} 19. Bc3 {[%clk 0:07:29.1]} 19... Nxe3
{[%clk 0:08:16.7]} 20. Nxc6 {[%clk 0:06:40.2]} 20... Bxc6 {[%clk 0:08:11.4]} 21.
fxe3 {[%clk 0:06:41.3]} 21... Qxe3+ {[%clk 0:08:07.2]} 22. Kh1 {[%clk
0:06:42.3]} 22... Qxc3 {[%clk 0:07:31.8]} 23. Rc1 {[%clk 0:06:41.8]} 23... Qb4
{[%clk 0:07:32]} 24. Rxc6 {[%clk 0:06:40.8]} 24... Nf6 {[%clk 0:07:33.2]} 25.
Rcxf6 {[%clk 0:06:12.1]} 25... gxf6 {[%clk 0:07:31.6]} 26. Bxd5 {[%clk
0:05:35.7]} 26... Rad8 {[%clk 0:06:46.1]} 27. Qg4+ {[%clk 0:05:10.3]} 27... Kh8
{[%clk 0:06:43]} 28. Qh4 {[%clk 0:04:20.8]} 28... Qf8 {[%clk 0:06:34.5]} 29. Bc6
{[%clk 0:03:40.1]} 29... Re6 {[%clk 0:05:54.7]} 30. d5 {[%clk 0:03:40.7]} 30...
Red6 {[%clk 0:05:55.9]} 31. Qb4 {[%clk 0:03:14.5]} 31... Qe7 {[%clk 0:05:47.9]}
32. Qxb6 {[%clk 0:03:15.3]} 32... Qe4+ {[%clk 0:05:48.9]} 33. Kg1 {[%clk
0:03:16.3]} 33... f5 {[%clk 0:05:39.9]} 34. Qf2 {[%clk 0:03:08.4]} 34... Rb8
{[%clk 0:05:18.2]} 35. Qxf5 {[%clk 0:02:45.6]} 35... Qxf5 {[%clk 0:05:18.5]} 36.
Rxf5 {[%clk 0:02:47.5]} 36... Kg7 {[%clk 0:05:11.5]} 37. a5 {[%clk 0:02:48.1]}
37... Rb1+ {[%clk 0:05:06.6]} 38. Rf1 {[%clk 0:02:49.5]} 38... Rb2 {[%clk
0:05:00.3]} 39. Ra1 {[%clk 0:02:48.9]} 39... Rh6 {[%clk 0:04:56.5]} 40. a6
{[%clk 0:02:36.9]} 40... Rhxh2 {[%clk 0:04:47.4]} 41. d6 {[%clk 0:02:38.1]}
41... Ra2 {[%clk 0:04:43.4]} 42. Rd1 {[%clk 0:01:47.7]} 42... Rh3 {[%clk
0:04:31.7]} 43. d7 {[%clk 0:01:38.2]} 43... Rxg3+ {[%clk 0:04:33]} 44. Kf1
{[%clk 0:01:39.4]} 44... Rg6 {[%clk 0:04:32.7]} 45. d8=Q {[%clk 0:01:30.8]}
45... Rf6+ {[%clk 0:04:33.8]} 46. Qxf6+ {[%clk 0:01:15.3]} 46... Kxf6 {[%clk
0:04:35.7]} 47. Bb5 {[%clk 0:01:12.6]} 47... h5 {[%clk 0:04:34.9]} 48. Rd7
{[%clk 0:01:12.8]} 48... Ra5 {[%clk 0:04:32.9]} 49. a7 {[%clk 0:01:11.7]} 49...
Ke6 {[%clk 0:04:29.7]} 50. Rb7 {[%clk 0:01:08.8]} 50... Kd6 {[%clk 0:04:29.6]}
51. Rb6+ {[%clk 0:01:04]} 1-0

[Event "GrandPrix_29.05"]
[Site "Chess.com"]
[Date "2020.05.29"]
[Round "2"]
[White "Warerman"]
[Black "Gabix_94"]
[Result "0-1"]
[WhiteElo "2116"]
[BlackElo "2462"]
[TimeControl "600+2"]
[EndTime "9:52:45 PDT"]
[Termination "Gabix_94 won on time"]

1. d4 {[%clk 0:09:08.8]} 1... Nf6 {[%clk 0:09:59.3]} 2. Nf3 {[%clk 0:09:00.2]}
2... g6 {[%clk 0:09:58.6]} 3. g3 {[%clk 0:08:59.8]} 3... Bg7 {[%clk 0:09:58.2]}
4. Bg2 {[%clk 0:09:01.7]} 4... O-O {[%clk 0:09:57.6]} 5. O-O {[%clk 0:09:03.2]}
5... d6 {[%clk 0:09:59]} 6. b3 {[%clk 0:09:03.3]} 6... c5 {[%clk 0:09:43.6]} 7.
Bb2 {[%clk 0:08:55.1]} 7... cxd4 {[%clk 0:09:00.3]} 8. Nxd4 {[%clk 0:08:57]}
8... d5 {[%clk 0:08:53.2]} 9. c4 {[%clk 0:07:03.6]} 9... e5 {[%clk 0:08:48]} 10.
Nc2 {[%clk 0:06:32]} 10... d4 {[%clk 0:08:42]} 11. e3 {[%clk 0:05:31.6]} 11...
d3 {[%clk 0:08:31.4]} 12. Nb4 {[%clk 0:05:31.9]} 12... e4 {[%clk 0:08:09.1]} 13.
Nd2 {[%clk 0:04:51.5]} 13... a5 {[%clk 0:07:31.9]} 14. Nd5 {[%clk 0:04:48.2]}
14... Nxd5 {[%clk 0:07:30.9]} 15. Bxg7 {[%clk 0:04:49.7]} 15... Nxe3 {[%clk
0:07:09.9]} 16. fxe3 {[%clk 0:04:49.3]} 16... Kxg7 {[%clk 0:07:10]} 17. Nxe4
{[%clk 0:04:41.2]} 17... Nc6 {[%clk 0:07:08.5]} 18. Qd2 {[%clk 0:04:19.1]} 18...
Bf5 {[%clk 0:06:20.1]} 19. c5 {[%clk 0:02:35.3]} 19... Bxe4 {[%clk 0:05:53.3]}
20. Bxe4 {[%clk 0:02:35.7]} 20... Ne5 {[%clk 0:05:33.1]} 21. Bxb7 {[%clk
0:02:21.6]} 21... Ra7 {[%clk 0:05:22.7]} 22. Bg2 {[%clk 0:02:20]} 22... Qe7
{[%clk 0:05:17.4]} 23. Rac1 {[%clk 0:02:18.7]} 23... f6 {[%clk 0:05:15.5]} 24.
a3 {[%clk 0:01:54.9]} 24... Rb8 {[%clk 0:05:03.1]} 25. b4 {[%clk 0:01:39.1]}
25... axb4 {[%clk 0:05:05]} 26. axb4 {[%clk 0:01:41]} 26... Ra4 {[%clk
0:05:01.6]} 27. Rb1 {[%clk 0:01:33.7]} 27... Qe6 {[%clk 0:04:45.6]} 28. b5
{[%clk 0:00:45]} 28... Ra2 {[%clk 0:04:37.7]} 29. Qc3 {[%clk 0:00:46.2]} 29...
Rc2 {[%clk 0:04:19.9]} 30. Qd4 {[%clk 0:00:44.5]} 30... Qa2 {[%clk 0:03:37.9]}
0-1

[Event "GrandPrix_29.05"]
[Site "Chess.com"]
[Date "2020.05.29"]
[Round "2"]
[White "Khayala13"]
[Black "PlayChessSimple"]
[Result "0-1"]
[WhiteElo "2017"]
[BlackElo "2306"]
[TimeControl "600+2"]
[EndTime "9:52:47 PDT"]
[Termination "PlayChessSimple won by resignation"]

1. e4 {[%clk 0:10:01.9]} 1... e6 {[%clk 0:10:00.1]} 2. d4 {[%clk 0:10:02.2]}
2... d5 {[%clk 0:09:59]} 3. Nd2 {[%clk 0:10:03.2]} 3... Nf6 {[%clk 0:09:59.3]}
4. e5 {[%clk 0:10:03.1]} 4... Nfd7 {[%clk 0:10:00.2]} 5. Bd3 {[%clk 0:10:02.8]}
5... c5 {[%clk 0:10:01]} 6. c3 {[%clk 0:10:04.5]} 6... Nc6 {[%clk 0:10:02]} 7.
Ne2 {[%clk 0:10:03.6]} 7... cxd4 {[%clk 0:10:02.9]} 8. cxd4 {[%clk 0:10:04.7]}
8... Nb6 {[%clk 0:10:04.4]} 9. Nf3 {[%clk 0:10:00.5]} 9... h6 {[%clk 0:10:04.7]}
10. O-O {[%clk 0:09:58.1]} 10... Bd7 {[%clk 0:09:59.8]} 11. Ng3 {[%clk
0:09:23.2]} 11... Rc8 {[%clk 0:09:28.9]} 12. Be3 {[%clk 0:08:53.5]} 12... Nb4
{[%clk 0:09:18.4]} 13. Be2 {[%clk 0:07:56.5]} 13... Nc4 {[%clk 0:09:07.5]} 14.
Qb3 {[%clk 0:07:13.1]} 14... Na5 {[%clk 0:08:04.8]} 15. Qd1 {[%clk 0:07:02.2]}
15... Nc4 {[%clk 0:08:05.8]} 16. Ne1 {[%clk 0:06:24.6]} 16... Nxb2 {[%clk
0:07:51.7]} 17. Qb3 {[%clk 0:06:17]} 17... Nc4 {[%clk 0:07:52.5]} 18. a3 {[%clk
0:05:21.9]} 18... Nc6 {[%clk 0:07:23]} 19. Bxc4 {[%clk 0:03:38.6]} 19... Na5
{[%clk 0:07:10.9]} 20. Qb1 {[%clk 0:03:05.3]} 20... Nxc4 {[%clk 0:07:07.1]} 21.
Nd3 {[%clk 0:02:28.8]} 21... Qb6 {[%clk 0:07:00.1]} 22. Qe1 {[%clk 0:02:24.7]}
22... Bxa3 {[%clk 0:06:21.6]} 23. Nh5 {[%clk 0:02:12]} 23... Rg8 {[%clk
0:06:06.3]} 24. f4 {[%clk 0:01:55.1]} 24... Qb3 {[%clk 0:05:45.4]} 25. Rd1
{[%clk 0:01:52.1]} 25... Ba4 {[%clk 0:05:08.7]} 26. f5 {[%clk 0:01:40.7]} 26...
Qxd1 {[%clk 0:05:01.2]} 27. fxe6 {[%clk 0:01:08.9]} 27... fxe6 {[%clk
0:04:55.7]} 28. Qg3 {[%clk 0:00:33.3]} 28... Qxh5 {[%clk 0:04:50.8]} 29. Nf4
{[%clk 0:00:34.1]} 29... Qg5 {[%clk 0:03:59.3]} 30. Qh3 {[%clk 0:00:34.4]} 30...
Qf5 {[%clk 0:03:57.5]} 31. g4 {[%clk 0:00:32.9]} 31... Qe4 {[%clk 0:03:51]} 32.
Rf3 {[%clk 0:00:16.5]} 32... Nxe3 {[%clk 0:03:46.5]} 33. Qh5+ {[%clk 0:00:12.7]}
33... g6 {[%clk 0:03:44]} 0-1

[Event "GrandPrix_29.05"]
[Site "Chess.com"]
[Date "2020.05.29"]
[Round "2"]
[White "MAS_1704"]
[Black "Didici"]
[Result "0-1"]
[WhiteElo "2029"]
[BlackElo "2382"]
[TimeControl "600+2"]
[EndTime "9:52:50 PDT"]
[Termination "Didici won on time"]

1. d4 {[%clk 0:10:01.9]} 1... Nf6 {[%clk 0:09:53.9]} 2. Nf3 {[%clk 0:10:01.3]}
2... b6 {[%clk 0:09:54.3]} 3. Bf4 {[%clk 0:09:56.2]} 3... Bb7 {[%clk 0:09:54.4]}
4. e3 {[%clk 0:09:56.4]} 4... g6 {[%clk 0:09:54]} 5. c4 {[%clk 0:09:36.7]} 5...
Bg7 {[%clk 0:09:53.7]} 6. Nc3 {[%clk 0:09:34.8]} 6... Ne4 {[%clk 0:09:53.5]} 7.
Nxe4 {[%clk 0:09:25.6]} 7... Bxe4 {[%clk 0:09:55.4]} 8. Bd3 {[%clk 0:09:26.5]}
8... Bxd3 {[%clk 0:09:51.3]} 9. Qxd3 {[%clk 0:09:26.8]} 9... c5 {[%clk
0:09:48.6]} 10. O-O {[%clk 0:09:23.2]} 10... cxd4 {[%clk 0:09:21.2]} 11. exd4
{[%clk 0:09:23]} 11... O-O {[%clk 0:09:22.1]} 12. Rfe1 {[%clk 0:09:18.7]} 12...
Re8 {[%clk 0:09:01.9]} 13. Be5 {[%clk 0:08:49.4]} 13... Bxe5 {[%clk 0:08:53.7]}
14. dxe5 {[%clk 0:08:29.8]} 14... Qc7 {[%clk 0:08:21.9]} 15. Rad1 {[%clk
0:08:20.5]} 15... Rd8 {[%clk 0:07:35.9]} 16. e6 {[%clk 0:06:52]} 16... f6 {[%clk
0:06:43.1]} 17. Qd5 {[%clk 0:06:38.4]} 17... Qc6 {[%clk 0:06:39.7]} 18. exd7+
{[%clk 0:06:11.3]} 18... Qxd5 {[%clk 0:06:37.9]} 19. Rxd5 {[%clk 0:06:10.3]}
19... Kf7 {[%clk 0:06:37.1]} 20. Red1 {[%clk 0:04:22.4]} 20... a6 {[%clk
0:06:33.3]} 21. b4 {[%clk 0:03:42.5]} 21... Ra7 {[%clk 0:06:33.2]} 22. Kf1
{[%clk 0:03:15.7]} 22... Rdxd7 {[%clk 0:06:25.1]} 23. Ke2 {[%clk 0:02:51.1]}
23... Rac7 {[%clk 0:06:06.7]} 24. Rxd7 {[%clk 0:01:51.6]} 24... Nxd7 {[%clk
0:06:08.6]} 25. Rc1 {[%clk 0:01:51.5]} 25... e5 {[%clk 0:05:58.4]} 26. Nd2
{[%clk 0:01:48.5]} 26... f5 {[%clk 0:05:59]} 27. Nf1 {[%clk 0:01:42.3]} 27...
Ke6 {[%clk 0:05:53]} 28. f3 {[%clk 0:01:40.5]} 28... g5 {[%clk 0:05:29.8]} 29.
Ne3 {[%clk 0:01:28.9]} 29... Nf6 {[%clk 0:05:29.7]} 30. Kd3 {[%clk 0:00:40.2]}
30... Rd7+ {[%clk 0:05:13.6]} 31. Ke2 {[%clk 0:00:39]} 31... f4 {[%clk
0:04:59.9]} 32. Nf1 {[%clk 0:00:36]} 32... e4 {[%clk 0:05:01]} 33. c5 {[%clk
0:00:29.6]} 33... bxc5 {[%clk 0:04:02.1]} 34. Rxc5 {[%clk 0:00:29.2]} 34... e3
{[%clk 0:04:03.2]} 35. Rxg5 {[%clk 0:00:22.3]} 35... Nd5 {[%clk 0:04:04.1]} 36.
Nxe3 {[%clk 0:00:04.1]} 36... Nc3+ {[%clk 0:04:04.7]} 37. Kf2 {[%clk 0:00:02.8]}
37... Rd2+ {[%clk 0:04:05.5]} 0-1

[Event "GrandPrix_29.05"]
[Site "Chess.com"]
[Date "2020.05.29"]
[Round "2"]
[White "elohunter1999"]
[Black "igorkovalenko"]
[Result "0-1"]
[WhiteElo "2144"]
[BlackElo "2086"]
[TimeControl "600+2"]
[EndTime "9:52:53 PDT"]
[Termination "igorkovalenko won by resignation"]

1. e4 {[%clk 0:09:54.8]} 1... c5 {[%clk 0:09:51.7]} 2. Nf3 {[%clk 0:09:54.4]}
2... e6 {[%clk 0:09:51.8]} 3. d4 {[%clk 0:09:54.3]} 3... cxd4 {[%clk 0:09:53.7]}
4. Nxd4 {[%clk 0:09:54]} 4... Nf6 {[%clk 0:09:55]} 5. Nc3 {[%clk 0:09:53.9]}
5... Nc6 {[%clk 0:09:56]} 6. Nxc6 {[%clk 0:09:54.2]} 6... bxc6 {[%clk
0:09:57.9]} 7. e5 {[%clk 0:09:54.5]} 7... Nd5 {[%clk 0:09:59.4]} 8. Ne4 {[%clk
0:09:55.2]} 8... Bb7 {[%clk 0:10:00.3]} 9. Be2 {[%clk 0:09:54.4]} 9... c5 {[%clk
0:10:01]} 10. O-O {[%clk 0:09:43]} 10... Qc7 {[%clk 0:10:01.5]} 11. Nd6+ {[%clk
0:09:19.9]} 11... Bxd6 {[%clk 0:10:02]} 12. exd6 {[%clk 0:09:21.8]} 12... Qc6
{[%clk 0:10:02.5]} 13. Bf3 {[%clk 0:09:12.7]} 13... c4 {[%clk 0:10:03.2]} 14.
Qd4 {[%clk 0:08:02.7]} 14... O-O {[%clk 0:10:02.2]} 15. Bf4 {[%clk 0:07:40.8]}
15... f6 {[%clk 0:09:56.4]} 16. Rad1 {[%clk 0:07:22.6]} 16... Rfc8 {[%clk
0:09:47.6]} 17. c3 {[%clk 0:06:58.8]} 17... Qb6 {[%clk 0:09:39.9]} 18. Qxb6
{[%clk 0:05:56.4]} 18... axb6 {[%clk 0:09:39.5]} 19. a3 {[%clk 0:05:57.8]} 19...
Bc6 {[%clk 0:09:26.6]} 20. Bg3 {[%clk 0:05:52.4]} 20... b5 {[%clk 0:09:23.7]}
21. Bxd5 {[%clk 0:05:38.2]} 21... Bxd5 {[%clk 0:09:24.6]} 22. h4 {[%clk
0:05:22.4]} 22... Rc5 {[%clk 0:09:21.1]} 23. Rfe1 {[%clk 0:05:18.9]} 23... Bc6
{[%clk 0:09:20.2]} 24. f3 {[%clk 0:05:09.6]} 24... Kf7 {[%clk 0:09:20.3]} 25.
Bf4 {[%clk 0:04:30.5]} 25... Rh5 {[%clk 0:09:07.3]} 26. Bg3 {[%clk 0:04:23.8]}
26... Rg8 {[%clk 0:08:35.9]} 27. Kf2 {[%clk 0:04:09.9]} 27... Rf5 {[%clk
0:08:25.3]} 28. Re3 {[%clk 0:03:55]} 28... g5 {[%clk 0:08:15.3]} 29. Rh1 {[%clk
0:03:45.3]} 29... g4 {[%clk 0:08:13.2]} 30. Rd1 {[%clk 0:03:09]} 30... h5 {[%clk
0:08:08]} 31. Bh2 {[%clk 0:03:01.7]} 31... Bb7 {[%clk 0:07:28]} 32. f4 {[%clk
0:02:33.5]} 32... g3+ {[%clk 0:06:56.3]} 33. Bxg3 {[%clk 0:02:25.1]} 33... Rg4
{[%clk 0:06:56.6]} 34. Kg1 {[%clk 0:02:15.4]} 34... Rc5 {[%clk 0:06:55]} 35. Rd4
{[%clk 0:02:10.4]} 35... Kg6 {[%clk 0:06:04.9]} 36. Bf2 {[%clk 0:02:10.1]} 36...
Kf5 {[%clk 0:06:00.4]} 37. g3 {[%clk 0:02:09.5]} 37... Rc8 {[%clk 0:05:59.1]}
38. Kf1 {[%clk 0:02:00.7]} 38... Rg7 {[%clk 0:05:46.7]} 39. Ke1 {[%clk 0:01:50]}
39... Bd5 {[%clk 0:05:47.1]} 40. Kd2 {[%clk 0:01:44.2]} 40... Rc6 {[%clk
0:05:47.6]} 41. Kc1 {[%clk 0:01:32.1]} 41... Rxd6 {[%clk 0:05:48.3]} 42. Rd2
{[%clk 0:01:21.8]} 42... Ra6 {[%clk 0:05:46.5]} 43. Re1 {[%clk 0:01:19.7]} 43...
Be4 {[%clk 0:05:45.9]} 44. Bd4 {[%clk 0:00:55.2]} 44... d5 {[%clk 0:05:41.1]}
45. Re3 {[%clk 0:00:52.9]} 45... Ra8 {[%clk 0:05:38.8]} 46. Re1 {[%clk
0:00:40.7]} 46... Rxg3 {[%clk 0:05:37.1]} 47. Rf2 {[%clk 0:00:34]} 47... Rag8
{[%clk 0:05:36.5]} 48. Kd2 {[%clk 0:00:31.6]} 48... Rd3+ {[%clk 0:05:36.9]} 49.
Kc1 {[%clk 0:00:32]} 49... Rh3 {[%clk 0:05:38.2]} 50. Rff1 {[%clk 0:00:23.1]}
50... Rxh4 {[%clk 0:05:37.8]} 51. Rg1 {[%clk 0:00:23.6]} 51... Rgg4 {[%clk
0:05:35.9]} 52. Rxg4 {[%clk 0:00:20.2]} 52... hxg4 {[%clk 0:05:36.8]} 53. Rg1
{[%clk 0:00:20.6]} 53... Rh3 {[%clk 0:05:36.6]} 54. Kd2 {[%clk 0:00:20.9]} 54...
g3 {[%clk 0:05:36]} 55. Ke3 {[%clk 0:00:20.6]} 55... g2+ {[%clk 0:05:37]} 56.
Kf2 {[%clk 0:00:21.5]} 56... Rf3+ {[%clk 0:05:20.3]} 57. Ke2 {[%clk 0:00:22.1]}
57... Rxf4 {[%clk 0:05:20.1]} 58. Be3 {[%clk 0:00:19.2]} 58... Rh4 {[%clk
0:05:18.8]} 0-1

[Event "GrandPrix_29.05"]
[Site "Chess.com"]
[Date "2020.05.29"]
[Round "2"]
[White "IriBu"]
[Black "Lion_DL"]
[Result "1-0"]
[WhiteElo "2052"]
[BlackElo "1881"]
[TimeControl "600+2"]
[EndTime "9:52:53 PDT"]
[Termination "IriBu won by resignation"]

1. e4 {[%clk 0:10:01.9]} 1... c5 {[%clk 0:09:59.5]} 2. Nf3 {[%clk 0:09:59.8]}
2... Nc6 {[%clk 0:10:00.9]} 3. d4 {[%clk 0:09:57.8]} 3... cxd4 {[%clk
0:10:01.6]} 4. Nxd4 {[%clk 0:09:59.7]} 4... e5 {[%clk 0:10:03]} 5. Nb5 {[%clk
0:10:00.1]} 5... d6 {[%clk 0:10:03.2]} 6. c4 {[%clk 0:09:58.5]} 6... Be7 {[%clk
0:10:00.3]} 7. N1c3 {[%clk 0:09:58.6]} 7... a6 {[%clk 0:10:00.8]} 8. Na3 {[%clk
0:09:59.5]} 8... Nf6 {[%clk 0:09:54.1]} 9. Bd3 {[%clk 0:09:59.7]} 9... O-O
{[%clk 0:09:54.3]} 10. O-O {[%clk 0:10:00.5]} 10... Be6 {[%clk 0:09:54.8]} 11.
Nc2 {[%clk 0:09:58.3]} 11... Rc8 {[%clk 0:09:52.7]} 12. Nd5 {[%clk 0:09:47.6]}
12... Ne8 {[%clk 0:09:42.8]} 13. Be3 {[%clk 0:09:38.8]} 13... Bg5 {[%clk
0:09:41.7]} 14. Qe2 {[%clk 0:09:22.7]} 14... f5 {[%clk 0:08:34.1]} 15. exf5
{[%clk 0:09:08.4]} 15... Bxf5 {[%clk 0:08:36]} 16. Bxf5 {[%clk 0:09:06.1]} 16...
Rxf5 {[%clk 0:08:33.8]} 17. Rad1 {[%clk 0:08:34.1]} 17... Bxe3 {[%clk
0:06:01.1]} 18. Ncxe3 {[%clk 0:08:30.8]} 18... Rf7 {[%clk 0:05:27.2]} 19. Nc2
{[%clk 0:08:21.6]} 19... Qg5 {[%clk 0:04:51.8]} 20. Rd3 {[%clk 0:08:16.1]} 20...
Nd8 {[%clk 0:03:46.9]} 21. Rg3 {[%clk 0:08:05.8]} 21... Qh4 {[%clk 0:03:46.2]}
22. Rg4 {[%clk 0:07:29.3]} 22... Qh6 {[%clk 0:03:38.3]} 23. f4 {[%clk
0:07:16.1]} 23... Nc6 {[%clk 0:03:11.2]} 24. fxe5 {[%clk 0:06:59.7]} 24... Rxf1+
{[%clk 0:02:54.4]} 25. Qxf1 {[%clk 0:06:54.7]} 25... dxe5 {[%clk 0:02:50.5]} 26.
Nce3 {[%clk 0:06:39.6]} 26... Qe6 {[%clk 0:02:04.1]} 27. h3 {[%clk 0:06:15.9]}
27... Nd4 {[%clk 0:01:57.1]} 28. b3 {[%clk 0:06:05]} 28... b5 {[%clk 0:01:55.2]}
29. Qf2 {[%clk 0:05:20.5]} 29... Rd8 {[%clk 0:01:34]} 30. Rg5 {[%clk 0:05:09.6]}
30... Rd7 {[%clk 0:01:13.7]} 31. Kh2 {[%clk 0:04:55.5]} 31... h6 {[%clk
0:01:11.3]} 32. Rg4 {[%clk 0:04:45.3]} 32... Rf7 {[%clk 0:01:12.6]} 33. Qh4
{[%clk 0:04:35.1]} 33... Nf5 {[%clk 0:00:52.8]} 34. Nxf5 {[%clk 0:04:25.4]}
34... Qxf5 {[%clk 0:00:53.9]} 35. Qd8 {[%clk 0:04:09.9]} 35... Qe6 {[%clk
0:00:46.8]} 36. Re4 {[%clk 0:03:51.2]} 36... bxc4 {[%clk 0:00:47.1]} 37. bxc4
{[%clk 0:03:51.4]} 37... Rd7 {[%clk 0:00:45.4]} 38. Qb8 {[%clk 0:03:47.1]} 38...
Kh7 {[%clk 0:00:45.1]} 39. Rxe5 {[%clk 0:03:37.5]} 39... Qd6 {[%clk 0:00:39.5]}
40. Qxe8 {[%clk 0:03:31.3]} 1-0